bitfinex-derivatives/quotes_SOLF0:USTF0_20250808
["timestamp","ask_amount","ask_price","bid_price","bid_amount"]
[1754616041587,396.84399869,174.28,174.19,9.59373468]
[1754616041787,396.84399869,174.28,174.22,41.40708006]
[1754616042088,377.49030223,174.28,174.22,33.51920283]
[1754616042384,3.26,174.27,174.22,33.51920283]
[1754616042578,3.30298516,174.27,174.22,31.04720283]
[1754616042783,3.26,174.26,174.22,18.13345259]
[1754616043077,3.26,174.26,174.17,8.08138325]
[1754616043276,3.26,174.25,174.18,6.45692968]
[1754616043482,3.26,174.25,174.19,6.45692968]
[1754616043781,0.04273243,174.23,174.2,6.45692968]
[1754616043984,3.26,174.22,174.16,11.21138325]
[1754616044583,0.04273243,174.23,174.2,3.13]
[1754616045089,0.39096852,174.32,174.22,11.21138325]
[1754616045284,107.89480155,174.35,174.22,8.08138325]
[1754616045479,327.30575881,174.38,174.25,8.08138325]
[1754616045684,287.53275182,174.38,174.26,10.3025787]
[1754616045887,0.04172776,174.3,174.27,7.1725787]
[1754616046186,287.53275182,174.38,174.25,8.08138325]
[1754616046187,267.49634037,174.38,174.28,7.1725787]
[1754616046491,8.08138325,174.34,174.29,7.17125494]
[1754616046688,240.05425858,174.38,174.3,7.17125494]
[1754616046885,240.05425858,174.38,174.31,7.17125494]
[1754616047085,8.08138325,174.39,174.32,7.17125494]
[1754616047286,3.26,174.39,174.33,7.17125494]
[1754616047491,8.08138325,174.43,174.35,31.61064288]
[1754616047787,8.08138325,174.43,174.36,7.17125494]
[1754616048090,8.08138325,174.43,174.37,14.34002676]
[1754616048293,126.86138325,174.46,174.38,14.37837297]
[1754616048588,126.86138325,174.46,174.39,14.34002676]
[1754616048790,17.24,174.59,174.4,7.16877182]
[1754616049083,8.08138325,174.49,174.39,31.61064288]
[1754616049593,3.26,174.49,174.42,0.0418694]
[1754616050286,8.08138325,174.47,174.4,31.61064288]
[1754616050479,8.12204591,174.47,174.4,31.61064288]
[1754616050685,3.21,174.46,174.38,24.70647874]
[1754616050885,3.21,174.46,174.4,5.7317]
[1754616051085,0.34347178,174.46,174.38,24.70647874]
[1754616051286,8.08138325,174.5,174.4,3.13]
[1754616051583,78.35120332,174.51,174.42,3.13]
[1754616051884,74.76782221,174.51,174.41,20.4064214]
[1754616052079,8.08138325,174.46,174.41,20.4064214]
[1754616052280,3.26,174.43,174.37,31.45337706]
[1754616052480,8.08138325,174.41,174.37,31.45337706]
[1754616052691,3.26,174.4,174.3,31.58306685]
[1754616052893,3.26,174.4,174.3,39.6644501]
[1754616053088,3.26,174.43,174.3,29.62947566]
[1754616053290,8.08138325,174.44,174.33,8.08138325]
[1754616053487,0.04345882,174.37,174.33,8.08138325]
[1754616053686,3.26,174.46,174.36,8.08138325]
[1754616053888,3.26,174.43,174.37,0.04045196]
[1754616054091,3.26,174.43,174.38,6.45101967]
[1754616054381,1.66530701,174.47,174.39,6.45101967]
[1754616054581,1.66530701,174.47,174.4,6.45101967]
[1754616054787,7.16690674,174.46,174.41,6.45101967]
[1754616054989,8.08138325,174.44,174.42,6.27101967]
[1754616055186,7.16690674,174.43,174.34,1.7370862]
[1754616055389,11.21138325,174.41,174.35,6.45125534]
[1754616055586,11.21138325,174.37,174.24,385.84]
[1754616055790,11.21138325,174.37,174.25,6.45302286]
[1754616055990,11.21138325,174.37,174.24,393.92138325]
[1754616056185,8.08138325,174.34,174.22,4.30328201]
[1754616056394,3.58529497,174.33,174.2,8.08138325]
[1754616056594,3.58529497,174.32,174.2,8.08138325]
[1754616056893,3.58529497,174.31,174.2,5.21254208]
[1754616057098,3.58529497,174.3,174.17,123.51231378]
[1754616057302,10.75857554,174.29,174.18,3.13]
[1754616057588,8.08138325,174.27,174.18,3.13]
[1754616057795,2.86,174.23,174.11,8.08138325]
[1754616057985,2.86,174.21,174.11,8.08138325]
[1754616058184,118.46,174.27,174.12,3.13]
[1754616058394,3.13,174.25,174.13,8.08138325]
[1754616058594,10.76253117,174.24,174.13,8.08138325]
[1754616058795,7.1750602,174.23,174.16,5.7396]
[1754616058995,7.1750602,174.22,174.14,3.05933604]
[1754616059196,3.13,174.25,174.18,31.40529001]
[1754616059396,8.08138325,174.26,174.18,31.40529001]
[1754616059696,8.08138325,174.27,174.19,3.13]
[1754616060397,366.04968328,174.3,174.19,3.13]
[1754616060599,385.58,174.4,174.24,3.13]
[1754616060895,119.02,174.39,174.25,3.13]
[1754616061199,3.13,174.35,174.24,24.49423789]
[1754616061493,3.13,174.35,174.24,30.23123789]
[1754616061695,8.08138325,174.33,174.24,24.49423789]
[1754616061894,0.93812478,174.32,174.24,24.49423789]
[1754616062096,1.43453584,174.31,174.25,3.32]
[1754616062296,9.51591909,174.3,174.24,13.0178939]
[1754616062494,8.08138325,174.33,174.25,3.32]
[1754616062693,8.08138325,174.3,174.21,3.32]
[1754616063087,8.08138325,174.33,174.22,5.7376]
[1754616063290,5.2122767,174.33,174.23,3.32]
[1754616063597,8.08138325,174.32,174.24,3.32]
[1754616064202,8.08138325,174.35,174.27,3.32]
[1754616064499,3.09,174.34,174.22,5.66343598]
[1754616064698,8.08138325,174.32,174.19,8.08138325]
[1754616064897,3.09,174.31,174.19,8.08138325]
[1754616065198,8.08138325,174.29,174.22,5.7377]
[1754616065401,3.09,174.28,174.23,7.17320543]
[1754616065595,3.09,174.31,174.24,7.17320543]
[1754616065797,3.09,174.31,174.25,7.17320543]
[1754616065993,3.09,174.35,174.26,7.17320543]
[1754616066191,3.09,174.35,174.27,7.17320543]
[1754616066496,8.08138325,174.36,174.28,7.17320543]
[1754616066687,8.08138325,174.3,174.19,34.52228085]
[1754616066900,3.09,174.26,174.2,2.15130615]
[1754616067086,8.08138325,174.27,174.21,2.15130615]
[1754616067286,3.09,174.23,174.22,2.15130615]
[1754616067494,8.08138325,174.27,174.22,2.15130615]
[1754616067687,3.09,174.26,174.23,6.45545331]
[1754616067892,3.09,174.25,174.24,6.45545331]
[1754616068194,11.17138325,174.25,174.24,6.45545331]
[1754616068395,11.17138325,174.25,174.24,2.93545331]
[1754616068593,11.17138325,174.25,174.11,8.08138325]
[1754616068792,8.08138325,174.22,174.13,3.32]
[1754616069297,8.08138325,174.25,174.2,34.86272629]
[1754616069591,8.08138325,174.36,174.2,28.67232611]
[1754616069592,8.08138325,174.21,174.2,28.67232611]
[1754616069788,8.08138325,174.21,174.11,3.32]
[1754616069986,8.08138325,174.14,174.07,3.32]
[1754616070185,3.58943079,174.13,174.07,9.37821966]
[1754616070397,118.78,174.19,174.06,6.05821966]
[1754616070398,6.6796439,174.12,174.06,6.05821966]
[1754616070593,11.17138325,174.1,173.95,58.36135988]
[1754616070788,8.08138325,174.07,174.01,6.05821966]
[1754616070998,8.08138325,174.04,173.95,5.7463]
[1754616071194,13.86305749,174.03,173.99,6.05821966]
[1754616071400,7.18341359,174.02,173.91,8.08138325]
[1754616071589,8.08138325,174.03,173.93,3.32]
[1754616071898,103.09043122,174.09,173.82,504.36]
[1754616071899,2.38,174.01,173.88,2.78028801]
[1754616072197,3.09,173.99,173.86,0.89655986]
[1754616072395,15.26547096,174.0,173.83,4.6215765]
[1754616072396,11.17138325,173.97,173.84,12.6236111]
[1754616072592,11.17138325,173.97,173.96,6.1083095]
[1754616072788,0.18,173.96,173.94,9.46917753]
[1754616073398,8.08138325,173.97,173.92,9.26917753]
[1754616073593,8.08138325,174.0,173.94,9.26917753]
[1754616074295,8.08138325,174.06,173.96,3.32]
[1754616074492,8.08138325,174.06,173.99,3.32]
[1754616074799,118.46,174.09,174.0,4.6215765]
[1754616075005,3.09,174.0,173.86,8.08138325]
[1754616075303,11.17138325,173.98,173.84,9.28724458]
[1754616075494,8.08138325,174.01,173.83,41.03271244]
[1754616075700,8.08138325,174.04,173.92,3.32]
[1754616076298,69.80981494,174.09,173.83,40.93755524]
[1754616076503,3.09,174.0,173.88,8.08138325]
[1754616076800,11.17138325,173.95,173.89,31.47364852]
[1754616076997,8.08138325,173.92,173.84,31.47364852]
[1754616077197,3.09,173.91,173.84,21.41043372]
[1754616077398,3.09,173.94,173.84,21.41043372]
[1754616077605,385.92,174.01,173.87,8.08138325]
[1754616077606,8.08138325,173.99,173.87,8.08138325]
[1754616077906,3.09,174.0,173.9,8.08138325]
[1754616078098,8.08138325,174.02,173.9,8.08138325]
[1754616078299,126.54138325,174.05,173.94,3.32]
[1754616078593,118.46,174.05,173.96,3.32]
[1754616078796,8.08138325,174.01,173.96,3.32]
[1754616079004,3.09,173.99,173.95,21.41043372]
[1754616079193,3.09,173.98,173.92,3.32]
[1754616079503,98.90789996,174.05,173.92,3.32]
[1754616079801,8.08138325,173.96,173.89,3.32]
[1754616080004,8.08138325,173.93,173.89,3.32]
[1754616080201,8.08138325,173.93,173.86,3.32]
[1754616080698,8.08138325,173.93,173.87,6.46966134]
[1754616080893,8.08138325,173.93,173.88,12.21856134]
[1754616081092,8.08138325,173.93,173.89,6.46966134]
[1754616081294,8.08138325,173.93,173.9,6.46966134]
[1754616081495,0.46,173.92,173.91,3.59425068]
[1754616081694,8.08138325,173.92,173.85,3.32]
[1754616081900,346.11340656,173.99,173.86,0.71887425]
[1754616081901,8.08138325,173.87,173.86,0.71887425]
[1754616082100,8.08138325,173.87,173.77,118.12466457]
[1754616082298,8.08138325,173.83,173.75,386.1]
[1754616082499,8.08138325,173.83,173.73,3.32]
[1754616082699,8.08138325,173.83,173.69,8.08138325]
[1754616083302,8.08138325,173.89,173.75,8.08138325]
[1754616083601,10.78648534,173.88,173.68,40.80319009]
[1754616083796,7.19089379,173.87,173.68,40.80319009]
[1754616083999,7.19003173,173.86,173.83,8.08138325]
[1754616084198,219.48629736,173.93,173.83,8.08138325]
[1754616084395,209.78155373,173.93,173.83,8.08138325]
[1754616084602,3.09,173.92,173.83,8.08138325]
[1754616084801,3.09,173.92,173.82,2.06]
[1754616085206,3.09,173.92,173.77,417.52846962]
[1754616085400,3.09,173.92,173.83,8.08138325]
[1754616085600,209.78155373,173.93,173.86,8.08138325]
[1754616085802,3.09,173.95,173.86,3.76597606]
[1754616086297,3.09,173.99,173.89,8.08138325]
[1754616086700,3.09,173.94,173.85,31.28846962]
[1754616086903,3.09,173.94,173.87,2.87413689]
[1754616087106,3.09,173.94,173.82,31.28846962]
[1754616087300,3.09,173.98,173.94,5.7467]
[1754616087504,3.09,173.98,173.87,10.31880547]
[1754616087805,3.09,174.0,173.88,0.21571228]
[1754616088307,3.09,173.97,173.84,13.19341542]
[1754616088511,13.19341542,173.98,173.85,3.09]
[1754616088698,13.19341542,174.01,173.87,13.19341542]
[1754616088901,13.19341542,174.01,173.88,3.09]
[1754616089304,13.19341542,174.04,173.88,3.09]
[1754616089505,373.90821936,174.1,173.91,3.09]
[1754616089797,13.19341542,174.0,173.87,3.09]
[1754616090005,13.19341542,173.97,173.87,3.09]
[1754616090208,13.19341542,174.0,173.94,5.7469]
[1754616090509,3.09,173.99,173.91,3.09]
[1754616090709,13.19341542,173.97,173.84,144.44383788]
[1754616091007,3.09,173.96,173.84,157.6372533]
[1754616091201,3.09,173.96,173.93,5.7473]
[1754616091404,3.09,173.95,173.84,157.6372533]
[1754616091800,3.09,173.99,173.87,13.19341542]
[1754616092003,13.19341542,174.09,173.84,140.85094637]
[1754616092208,3.09,174.11,174.04,21.81747744]
[1754616092408,16.28341542,174.15,174.04,14.63483114]
[1754616092603,13.19341542,174.15,174.0,13.19341542]
[1754616092810,3.09,174.14,174.0,13.19341542]
[1754616093408,3.09,174.14,174.0,10.32111589]
[1754616093612,13.19341542,174.12,173.97,13.19341542]
[1754616093810,3.09,174.08,173.95,117.92]
[1754616094005,3.09,174.08,173.96,6.4636785]
[1754616094211,3.09,174.08,173.97,6.4636785]
[1754616094412,13.19341542,174.06,173.93,386.34]
[1754616094613,5.7444,174.02,173.94,3.09]
[1754616094917,3.59093617,174.01,173.94,3.09]
[1754616095112,3.59093617,174.0,173.93,385.11989575]
[1754616095313,3.59093617,173.99,173.93,377.93626893]
[1754616095519,3.09,173.97,173.93,377.93626893]
[1754616095720,3.59268995,173.96,173.94,3.09]
[1754616095920,17.24,174.16,173.94,3.09]
[1754616096220,13.19341542,174.06,173.94,3.09]
[1754616096412,7.18419706,174.05,173.94,3.09]
[1754616096614,7.18419706,174.04,173.94,3.09]
[1754616096818,7.18419706,174.03,173.94,3.09]
[1754616097015,7.18419706,174.02,174.01,5.7446]
[1754616097218,13.19341542,174.12,174.01,3.09]
[1754616097424,465.87441908,174.2,173.98,31.2506521]
[1754616097425,18.93641542,174.06,173.98,31.2506521]
[1754616097726,3.09,174.05,173.98,31.2506521]
[1754616097925,3.09,174.05,173.99,3.09]
[1754616098125,13.19341542,174.09,173.99,3.09]
[1754616098126,3.09,174.09,173.99,3.09]
[1754616098717,3.09,174.08,173.98,24.28521588]
[1754616098922,3.09,174.08,173.96,13.19341542]
[1754616099422,13.19341542,174.12,173.97,0.21693184]
[1754616099625,5.7428,174.07,174.02,5.7442]
[1754616099828,13.19341542,174.09,173.96,3.21]
[1754616100127,13.19341542,174.06,173.96,3.21]
[1754616100322,3.09,174.02,173.93,529.0132388]
[1754616100526,13.19341542,174.04,173.93,482.46310233]
[1754616100721,13.19341542,174.04,173.94,3.18]
[1754616100928,13.19341542,174.07,173.94,3.18]
[1754616101328,3.09,174.06,173.94,1.74317169]
[1754616101823,3.09,174.06,173.94,14.93658711]
[1754616102028,8.8331,174.06,173.94,4.57311352]
[1754616102231,3.09,174.06,173.97,13.19341542]
[1754616102429,3.09,174.06,173.99,13.19341542]
[1754616102630,3.09,174.12,174.05,13.19341542]
[1754616102824,3.09,174.18,174.08,13.19341542]
[1754616103028,3.09,174.18,174.1,5.7414]
[1754616103327,3.09,174.18,174.05,13.19341542]
[1754616103532,3.09,174.18,174.04,119.67]
[1754616103726,3.09,174.15,174.01,1.75]
[1754616104423,3.09,174.15,174.04,1.75]
[1754616104628,3.09,174.15,174.07,1.75]
[1754616104828,3.09,174.18,174.1,1.75]
[1754616106031,3.09,174.18,174.07,1.75]
[1754616106530,3.09,174.18,174.1,1.75]
[1754616106836,3.09,174.21,174.13,1.75]
[1754616107129,5.7395,174.17,174.12,5.7409]
[1754616107331,3.09,174.16,174.12,5.7409]
[1754616107532,3.09,174.23,174.16,1.75]
[1754616108032,3.09,174.23,174.13,1.75]
[1754616108532,3.09,174.19,174.1,1.75]
[1754616108732,3.09,174.16,174.05,386.14]
[1754616108930,3.09,174.13,174.05,386.14]
[1754616109234,3.09,174.17,174.06,1.75]
[1754616109721,3.09,174.17,174.09,1.75]
[1754616110120,3.09,174.21,174.12,1.75]
[1754616110726,3.09,174.21,174.11,8.07947735]
[1754616110727,3.09,174.21,174.13,5.7407]
[1754616111133,3.09,174.21,174.09,9.82947735]
[1754616111432,3.09,174.21,174.12,9.82947735]
[1754616111834,3.09,174.19,174.12,9.82947735]
[1754616112735,3.09,174.22,174.15,8.07947735]
[1754616112928,3.09,174.22,174.15,9.82947735]
[1754616114526,5.7374,174.23,174.19,5.7386]
[1754616114733,3.09,174.21,174.15,8.07947735]
[1754616115131,3.09,174.21,174.19,5.7387]
[1754616115330,3.09,174.25,174.14,1.75]
[1754616115633,3.09,174.25,174.22,5.7377]
[1754616115932,3.09,174.26,174.17,1.75]
[1754616116231,3.09,174.25,174.17,1.75]
[1754616116632,3.09,174.25,174.16,8.07947735]
[1754616117022,3.09,174.25,174.17,1.75]
[1754616117235,8.8268,174.25,174.17,1.75]
[1754616117433,3.09,174.25,174.17,1.75]
[1754616117825,3.09,174.26,174.17,1.75]
[1754616118426,3.09,174.25,174.19,8.07947735]
[1754616118631,3.09,174.25,174.19,9.82947735]
[1754616119034,3.09,174.25,174.19,8.07947735]
[1754616119423,3.09,174.25,174.19,9.82947735]
[1754616119732,3.09,174.25,174.19,1.75]
[1754616119929,3.09,174.25,174.18,5.7387]
[1754616120122,3.09,174.21,174.1,9.82947735]
[1754616120328,3.09,174.18,174.07,117.3]
[1754616120523,3.09,174.11,174.06,5.7429]
[1754616120830,3.09,174.11,173.99,9.82947735]
[1754616121129,3.09,174.09,173.99,9.82947735]
[1754616121332,3.09,174.09,173.98,117.38]
[1754616121526,3.1,174.05,173.96,387.59]
[1754616122032,3.1,174.05,174.02,5.744]
[1754616122231,3.1,174.05,173.99,1.74]
[1754616122427,3.1,174.09,174.01,8.07947735]
[1754616122627,3.1,174.08,174.02,1.74]
[1754616122828,3.1,174.11,174.04,8.07947735]
[1754616123023,3.1,174.11,174.05,1.74]
[1754616123224,3.1,174.11,174.01,9.81947735]
[1754616123630,5.7417,174.1,174.05,5.7432]
[1754616123826,3.1,174.12,173.99,117.38]
[1754616124027,5.7426,174.08,174.02,5.744]
[1754616124333,3.1,174.11,174.01,8.07947735]
[1754616124638,5.7426,174.08,174.02,5.744]
[1754616124935,3.1,174.11,174.02,1.74]
[1754616125127,5.7417,174.1,174.01,8.07947735]
[1754616125328,3.1,174.09,174.01,9.81947735]
[1754616125527,3.1,174.09,174.02,1.74]
[1754616125730,3.1,174.09,174.05,5.7431]
[1754616125940,3.1,174.16,174.05,1.74]
[1754616126128,3.1,174.16,174.07,8.07947735]
[1754616126332,3.1,174.09,174.01,9.81947735]
[1754616126735,3.1,174.09,174.01,8.07947735]
[1754616126934,3.1,174.09,174.02,1.74]
[1754616127237,3.1,174.16,174.05,1.74]
[1754616127535,3.1,174.12,174.05,1.74]
[1754616128032,3.1,174.12,174.08,1.74]
[1754616128340,3.1,174.19,174.09,1.74]
[1754616128531,3.1,174.16,174.09,1.74]
[1754616128736,3.1,174.19,174.13,8.07947735]
[1754616129136,3.1,174.19,174.17,5.7393]
[1754616129333,3.1,174.19,174.12,1.74]
[1754616129633,3.1,174.22,174.16,1.74]
[1754616130038,3.1,174.22,174.18,9.81947735]
[1754616130336,3.1,174.26,174.15,8.07947735]
[1754616130538,8.07947735,174.24,174.12,9.81947735]
[1754616130739,3.1,174.2,174.12,9.81947735]
[1754616131037,3.1,174.2,174.16,1.74]
[1754616131238,3.1,174.19,174.13,1.74]
[1754616131734,3.1,174.18,174.12,8.07947735]
[1754616131939,8.07947735,174.21,174.1,1.74]
[1754616132238,5.74,174.15,174.1,5.7414]
[1754616132439,3.1,174.13,174.1,5.7414]
[1754616132643,3.1,174.11,174.08,385.96]
[1754616132943,3.1,174.15,174.09,1.74]
[1754616133234,5.7399,174.16,174.09,1.74]
[1754616133442,3.1,174.13,174.09,1.74]
[1754616133837,3.1,174.17,174.09,9.81947735]
[1754616134031,3.1,174.17,174.1,1.74]
[1754616134343,3.1,174.2,174.1,1.74]
[1754616135041,3.1,174.2,174.13,1.74]
[1754616135440,5.7383,174.21,174.15,5.7398]
[1754616135633,3.1,174.19,174.13,1.74]
[1754616135831,3.1,174.19,174.12,8.07947735]
[1754616136042,3.1,174.19,174.09,8.07947735]
[1754616136438,5.7405,174.14,174.09,8.07947735]
[1754616136643,3.1,174.13,174.1,1.74]
[1754616137342,3.1,174.2,174.09,1.74]
[1754616137540,5.7395,174.17,174.1,5.7416]
[1754616137743,3.1,174.16,174.1,5.7416]
[1754616138040,3.1,174.16,174.08,385.96]
[1754616138241,3.1,174.16,174.07,116.86]
[1754616138631,3.1,174.14,174.01,8.07947735]
[1754616138836,3.1,174.14,174.0,67.89450921]
[1754616139033,5.7426,174.08,174.02,2.15429028]
[1754616139233,3.1,174.14,174.01,111.71487083]
[1754616139435,3.1,174.14,174.01,75.09941216]
[1754616139635,37.51214597,174.25,174.12,41.49657386]
[1754616139941,588.8221322,174.28,174.12,41.49657386]
[1754616140242,369.90662018,174.28,174.14,8.07947735]
[1754616140443,17.1923,174.44,174.2,8.07947735]
[1754616140444,8.07947735,174.31,174.2,8.07947735]
[1754616140642,8.07947735,174.33,174.25,41.49657386]
[1754616140947,8.07947735,174.36,174.26,20.82243515]
[1754616141139,5.7351,174.3,174.27,20.82243515]
[1754616141341,5.7351,174.3,174.25,41.49657386]
[1754616141342,5.7351,174.3,174.28,20.82243515]
[1754616141542,7.17311492,174.29,174.25,41.49657386]
[1754616141737,7.17311492,174.28,174.26,7.17298745]
[1754616141942,7.17311492,174.27,174.23,11.17947735]
[1754616142142,3.1,174.25,174.24,7.17295887]
[1754616142345,7.17311492,174.25,174.24,10.27295887]
[1754616143046,4.07311492,174.25,174.24,16.01005887]
[1754616143242,4.07311492,174.25,174.24,10.27295887]
[1754616143443,3.1,174.31,174.24,3.1]
[1754616143644,3.1,174.36,174.29,8.07947735]
[1754616143846,8.8333,174.36,174.32,8.07947735]
[1754616144049,3.1,174.36,174.32,8.07947735]
[1754616144343,5.7337,174.35,174.25,116.64]
[1754616144643,3.1,174.36,174.3,8.07947735]
[1754616144850,8.8334,174.36,174.3,8.07947735]
[1754616145150,3.1,174.36,174.3,8.07947735]
[1754616145349,8.8331,174.36,174.3,8.07947735]
[1754616145548,3.1,174.39,174.33,8.07947735]
[1754616145748,3.1,174.39,174.36,8.07947735]
[1754616145951,222.46322119,174.42,174.36,8.07947735]
[1754616146444,3.1,174.4,174.36,8.07947735]
[1754616146648,3.1,174.39,174.36,8.07947735]
[1754616146847,219.36322119,174.42,174.33,8.07947735]
[1754616147042,3.1,174.37,174.33,8.07947735]
[1754616147244,3.1,174.41,174.33,8.07947735]
[1754616147447,3.1,174.41,174.3,8.07947735]
[1754616147954,5.7318,174.4,174.33,8.07947735]
[1754616148139,3.1,174.4,174.36,8.07947735]
[1754616148750,219.36322119,174.42,174.39,8.07947735]
[1754616149048,3.1,174.41,174.39,8.07947735]
[1754616149248,222.46322119,174.42,174.39,8.07947735]
[1754616149444,219.36322119,174.42,174.36,8.07947735]
[1754616149646,219.36322119,174.42,174.39,8.07947735]
[1754616149852,3.1,174.53,174.39,8.07947735]
[1754616150048,3.1,174.53,174.47,8.07947735]
[1754616150246,3.1,174.51,174.47,8.07947735]
[1754616150452,3.1,174.58,174.47,8.07947735]
[1754616150645,3.1,174.56,174.47,8.07947735]
[1754616150852,8.8292,174.48,174.47,8.07947735]
[1754616151052,3.1,174.47,174.4,8.07947735]
[1754616151242,5.7307,174.44,174.4,8.07947735]
[1754616151446,3.1,174.48,174.43,8.07947735]
[1754616151648,3.19,174.51,174.46,8.07947735]
[1754616151845,3.19,174.5,174.37,116.34]
[1754616152045,3.19,174.53,174.41,8.07947735]
[1754616152244,5.7301,174.45,174.41,8.07947735]
[1754616152454,3.19,174.53,174.41,8.07947735]
[1754616152646,3.19,174.53,174.44,8.07947735]
[1754616152850,3.19,174.53,174.47,8.07947735]
[1754616153251,5.7291,174.48,174.47,8.07947735]
[1754616153448,3.19,174.54,174.47,8.07947735]
[1754616153652,217.62168947,174.55,174.47,8.07947735]
[1754616153847,217.62168947,174.55,174.45,5.7301]
[1754616153848,5.7282,174.51,174.5,8.07947735]
[1754616154154,220.81168947,174.55,174.26,34.32876916]
[1754616154155,299.0,174.5,174.26,34.32876916]
[1754616154460,3.19,174.46,174.41,8.07947735]
[1754616154655,11.4554,174.53,174.41,8.07947735]
[1754616154656,3.19,174.49,174.42,3.34]
[1754616154854,3.19,174.48,174.44,11.41947735]
[1754616155152,8.07947735,174.55,174.41,11.41947735]
[1754616155153,3.19,174.54,174.41,11.41947735]
[1754616155454,3.19,174.45,174.38,11.41947735]
[1754616155856,3.19,174.51,174.41,11.41947735]
[1754616156252,3.19,174.51,174.42,3.34]
[1754616156455,3.19,174.51,174.45,3.34]
[1754616156750,3.19,174.54,174.47,11.41947735]
[1754616156958,3.19,174.54,174.48,3.34]
[1754616157456,214.6593101,174.57,174.34,385.34]
[1754616157654,3.19,174.56,174.49,3.34]
[1754616158059,3.19,174.56,174.46,3.34]
[1754616158550,3.19,174.54,174.45,8.07947735]
[1754616158858,3.19,174.54,174.48,3.34]
[1754616159058,3.19,174.49,174.45,11.41947735]
[1754616159256,3.19,174.48,174.4,3.34]
[1754616159767,8.07947735,174.46,174.37,3.34]
[1754616160060,3.19,174.45,174.37,3.34]
[1754616160255,3.19,174.45,174.34,385.34]
[1754616160558,3.19,174.42,174.33,118.14]
[1754616161063,3.19,174.42,174.33,121.48]
[1754616161363,3.19,174.42,174.34,3.34]
[1754616161857,3.19,174.45,174.36,3.34]
[1754616162160,3.19,174.45,174.33,129.47947735]
[1754616162364,3.19,174.42,174.33,3.34]
[1754616162561,3.19,174.42,174.3,11.41947735]
[1754616162757,3.19,174.42,174.3,3.34]
[1754616163063,3.19,174.42,174.31,8.07947735]
[1754616163559,3.19,174.42,174.34,8.07947735]
[1754616163764,3.19,174.42,174.35,3.34]
[1754616164261,3.19,174.42,174.32,3.34]
[1754616164461,3.19,174.39,174.32,3.34]
[1754616164656,3.19,174.47,174.34,3.34]
[1754616164855,3.19,174.47,174.36,8.07947735]
[1754616166067,3.19,174.47,174.4,3.34]
[1754616166559,3.19,174.53,174.47,3.34]
[1754616166764,3.19,174.53,174.49,11.41947735]
[1754616167065,5.7272,174.55,174.52,8.07947735]
[1754616167365,8.07947735,174.6,174.49,8.07947735]
[1754616167565,3.19,174.55,174.49,8.07947735]
[1754616167957,3.19,174.6,174.52,8.07947735]
[1754616168562,3.19,174.6,174.49,13.80827735]
[1754616168767,3.19,174.56,174.44,3.34]
[1754616169167,3.19,174.53,174.46,8.07947735]
[1754616169671,3.19,174.53,174.45,3.34]
[1754616169860,3.19,174.53,174.41,11.41947735]
[1754616170059,3.19,174.5,174.36,117.8]
[1754616170262,3.19,174.5,174.37,3.34]
[1754616170471,3.19,174.47,174.34,396.67947735]
[1754616170773,3.19,174.44,174.34,393.33947735]
[1754616171067,3.19,174.44,174.35,3.34]
[1754616171267,3.19,174.44,174.34,385.26]
[1754616171471,3.19,174.41,174.32,3.34]
[1754616171865,3.19,174.37,174.29,3.34]
[1754616172058,3.19,174.37,174.25,3.34]
[1754616172467,3.19,174.35,174.25,3.34]
[1754616172667,8.07947735,174.33,174.24,385.18]
[1754616172959,3.19,174.32,174.22,121.44]
[1754616173171,3.19,174.29,174.22,118.1]
[1754616173970,3.19,174.29,174.24,0.03768282]